[Event "Titled Tuesday Blitz March 29 Early 2022"]
[White "Liyanage, Ranindu Dilshan"]
[Black "Gracia Alvarez, Gerardo Antonio"]
[WhiteFideId "9915834"]
[BlackFideId "5109124"]
[WhiteElo "1858"]
[BlackElo "2139"]
[Result "1-0"]
[Round "06"]
[TimeControl "180+1"]
[Date "2022.03.30"]
[WhiteClock "0:01:23"]
[BlackClock "0:01:00"]

1. e4 {[%clk 0:03:00]}  c5 {[%clk 0:03:00]} 2. Nf3 {[%clk 0:03:01]}  Nc6 {[%clk 0:03:00]} 3. d4 {[%clk 0:03:01]}  cxd4 {[%clk 0:03:01]} 4. Nxd4 {[%clk 0:03:02]}  Nf6 {[%clk 0:03:02]} 5. Nc3 {[%clk 0:03:02]}  e5 {[%clk 0:03:02]} 6. Ndb5 {[%clk 0:03:02]}  h6 {[%clk 0:03:03]} 7. Nd6+ {[%clk 0:03:01]}  Bxd6 {[%clk 0:03:03]} 8. Qxd6 {[%clk 0:03:02]}  Qe7 {[%clk 0:03:04]} 9. Qxe7+ {[%clk 0:03:02]}  Kxe7 {[%clk 0:03:05]} 10. Bc4 {[%clk 0:03:01]}  d6 {[%clk 0:03:05]} 11. f3 {[%clk 0:02:58]}  Be6 {[%clk 0:03:05]} 12. Bxe6 {[%clk 0:02:56]}  fxe6 {[%clk 0:03:01]} 13. Be3 {[%clk 0:02:56]}  Rhc8 {[%clk 0:02:59]} 14. O-O-O {[%clk 0:02:55]}  a6 {[%clk 0:02:57]} 15. g4 {[%clk 0:02:55]}  b5 {[%clk 0:02:38]} 16. h4 {[%clk 0:02:49]}  Nd7 {[%clk 0:02:13]} 17. g5 {[%clk 0:02:46]}  h5 {[%clk 0:02:13]} 18. Rd2 {[%clk 0:02:42]}  Na5 {[%clk 0:02:09]} 19. Bf2 {[%clk 0:02:35]}  Nc4 {[%clk 0:02:07]} 20. Rd3 {[%clk 0:02:35]}  g6 {[%clk 0:02:04]} 21. Rhd1 {[%clk 0:02:34]}  Rc6 {[%clk 0:02:04]} 22. a3 {[%clk 0:02:00]}  Rac8 {[%clk 0:02:01]} 23. Na2 {[%clk 0:01:40]}  Nxb2 {[%clk 0:01:32]} 24. Kxb2 {[%clk 0:01:41]}  Rxc2+ {[%clk 0:01:32]} 25. Kb1 {[%clk 0:01:38]}  Rxf2 {[%clk 0:01:30]} 26. Rxd6 {[%clk 0:01:39]}  Nc5 {[%clk 0:01:27]} 27. Nb4 {[%clk 0:01:36]}  Rxf3 {[%clk 0:01:00]} 28. Nc6+ {[%clk 0:01:32]}  Ke8 {[%clk 0:01:00]} 29. Rd8+ {[%clk 0:01:26]}  Rxd8 {[%clk 0:01:00]} 30. Rxd8+ {[%clk 0:01:27]}  Kf7 {[%clk 0:01:00]} 31. Nxe5+ {[%clk 0:01:23]} 1-0


[Site "https://www.chess.com"]

[Event "Titled Tuesday Blitz March 29 Early 2022"]
[White "Ljukin, Sergei"]
[Black "Atakhan, Abtin"]
[WhiteFideId "14102200"]
[BlackFideId "22502203"]
[WhiteElo "2312"]
[BlackElo "2119"]
[Result "1/2-1/2"]
[Round "06"]
[TimeControl "180+1"]
[Date "2022.03.29"]
[WhiteClock "0:00:05"]
[BlackClock "0:00:18"]

1. e4 {[%clk 0:02:49]}  c5 {[%clk 0:02:59]} 2. Nf3 {[%clk 0:02:49]}  Nc6 {[%clk 0:02:58]} 3. d4 {[%clk 0:02:50]}  cxd4 {[%clk 0:02:58]} 4. Nxd4 {[%clk 0:02:50]}  g6 {[%clk 0:02:59]} 5. c4 {[%clk 0:02:50]}  Bg7 {[%clk 0:03:00]} 6. Be3 {[%clk 0:02:51]}  Nf6 {[%clk 0:02:59]} 7. Nc3 {[%clk 0:02:51]}  d6 {[%clk 0:02:59]} 8. Be2 {[%clk 0:02:51]}  Nxd4 {[%clk 0:02:59]} 9. Bxd4 {[%clk 0:02:51]}  O-O {[%clk 0:02:59]} 10. O-O {[%clk 0:02:51]}  a5 {[%clk 0:03:00]} 11. b3 {[%clk 0:02:47]}  Be6 {[%clk 0:03:01]} 12. f4 {[%clk 0:02:46]}  a4 {[%clk 0:02:59]} 13. Rc1 {[%clk 0:02:04]}  axb3 {[%clk 0:02:59]} 14. axb3 {[%clk 0:02:05]}  Qa5 {[%clk 0:02:50]} 15. Nd5 {[%clk 0:01:43]}  Bxd5 {[%clk 0:02:44]} 16. exd5 {[%clk 0:01:40]}  Nd7 {[%clk 0:02:34]} 17. Bxg7 {[%clk 0:01:32]}  Kxg7 {[%clk 0:02:35]} 18. Qd4+ {[%clk 0:01:30]}  Kg8 {[%clk 0:02:35]} 19. Rb1 {[%clk 0:01:29]}  Qb4 {[%clk 0:02:30]} 20. f5 {[%clk 0:01:15]}  Ne5 {[%clk 0:02:25]} 21. f6 {[%clk 0:01:13]}  Rfe8 {[%clk 0:02:22]} 22. fxe7 {[%clk 0:01:02]}  Rxe7 {[%clk 0:02:23]} 23. Ra1 {[%clk 0:01:02]}  Rxa1 {[%clk 0:02:20]} 24. Rxa1 {[%clk 0:01:01]}  Qxb3 {[%clk 0:02:11]} 25. c5 {[%clk 0:00:59]}  dxc5 {[%clk 0:01:54]} 26. Qxc5 {[%clk 0:00:58]}  Re8 {[%clk 0:01:50]} 27. Bb5 {[%clk 0:00:24]}  Qb2 {[%clk 0:01:43]} 28. Rf1 {[%clk 0:00:20]}  Ra8 {[%clk 0:01:37]} 29. d6 {[%clk 0:00:15]}  Rd8 {[%clk 0:01:29]} 30. d7 {[%clk 0:00:13]}  Nxd7 {[%clk 0:01:14]} 31. Qe7 {[%clk 0:00:12]}  Qd4+ {[%clk 0:01:06]} 32. Kh1 {[%clk 0:00:12]}  Ne5 {[%clk 0:01:00]} 33. Qxb7 {[%clk 0:00:10]}  Qd5 {[%clk 0:00:53]} 34. Qxd5 {[%clk 0:00:06]}  Rxd5 {[%clk 0:00:54]} 35. Be2 {[%clk 0:00:06]}  Rd2 {[%clk 0:00:53]} 36. Bf3 {[%clk 0:00:06]}  Kg7 {[%clk 0:00:52]} 37. h3 {[%clk 0:00:06]}  h5 {[%clk 0:00:52]} 38. Bb7 {[%clk 0:00:05]}  Nd3 {[%clk 0:00:50]} 39. Kg1 {[%clk 0:00:04]}  g5 {[%clk 0:00:46]} 40. Rf5 {[%clk 0:00:02]}  f6 {[%clk 0:00:43]} 41. Rd5 {[%clk 0:00:01]}  Rd1+ {[%clk 0:00:41]} 42. Kh2 {[%clk 0:00:02]}  Nf2 {[%clk 0:00:30]} 43. Rxd1 {[%clk 0:00:01]}  Nxd1 {[%clk 0:00:31]} 44. Bf3 {[%clk 0:00:01]}  Ne3 {[%clk 0:00:29]} 45. Bxh5 {[%clk 0:00:02]}  Kf8 {[%clk 0:00:29]} 46. Be2 {[%clk 0:00:03]}  Ke7 {[%clk 0:00:29]} 47. Kg3 {[%clk 0:00:03]}  Nf5+ {[%clk 0:00:29]} 48. Kf3 {[%clk 0:00:03]}  Ng7 {[%clk 0:00:30]} 49. Kg4 {[%clk 0:00:04]}  Ne6 {[%clk 0:00:25]} 50. Bd3 {[%clk 0:00:04]}  Nf4 {[%clk 0:00:25]} 51. Be4 {[%clk 0:00:05]}  Kf7 {[%clk 0:00:25]} 52. h4 {[%clk 0:00:05]}  Ne6 {[%clk 0:00:21]} 53. hxg5 {[%clk 0:00:05]}  Nxg5 {[%clk 0:00:20]} 54. Bf5 {[%clk 0:00:05]}  Ke7 {[%clk 0:00:20]} 55. Kf4 {[%clk 0:00:06]}  Kd6 {[%clk 0:00:21]} 56. Bb1 {[%clk 0:00:05]}  Ke6 {[%clk 0:00:20]} 57. Ba2+ {[%clk 0:00:05]}  Ke7 {[%clk 0:00:21]} 58. Kf5 {[%clk 0:00:06]}  Nh7 {[%clk 0:00:19]} 59. g4 {[%clk 0:00:06]}  Ng5 {[%clk 0:00:19]} 60. Bb3 {[%clk 0:00:06]}  Nf3 {[%clk 0:00:19]} 61. Ba2 {[%clk 0:00:06]}  Nd2 {[%clk 0:00:19]} 62. g5 {[%clk 0:00:05]}  fxg5 {[%clk 0:00:18]} 63. Kxg5 {[%clk 0:00:05]} 1/2-1/2


[Site "https://www.chess.com"]

[Event "Titled Tuesday Blitz March 29 Early 2022"]
[White "Manelyuk, Daniil"]
[Black "Bashirli, Saadat"]
[WhiteFideId "44173920"]
[BlackFideId "13429990"]
[WhiteElo "2222"]
[BlackElo "1173"]
[Result "1-0"]
[Round "06"]
[TimeControl "180+1"]
[Date "2022.03.30"]
[WhiteClock "0:00:57"]
[BlackClock "0:00:43"]

1. e4 {[%clk 0:03:00]}  c5 {[%clk 0:02:57]} 2. Nf3 {[%clk 0:03:00]}  g6 {[%clk 0:02:58]} 3. d4 {[%clk 0:03:00]}  cxd4 {[%clk 0:02:58]} 4. Nxd4 {[%clk 0:03:00]}  Nc6 {[%clk 0:02:59]} 5. Nc3 {[%clk 0:03:00]}  Bg7 {[%clk 0:02:59]} 6. Be3 {[%clk 0:02:59]}  Nf6 {[%clk 0:02:59]} 7. f3 {[%clk 0:02:59]}  O-O {[%clk 0:03:00]} 8. Qd2 {[%clk 0:02:59]}  d5 {[%clk 0:03:00]} 9. Nxc6 {[%clk 0:02:57]}  bxc6 {[%clk 0:02:59]} 10. O-O-O {[%clk 0:02:58]}  Be6 {[%clk 0:02:53]} 11. exd5 {[%clk 0:02:56]}  cxd5 {[%clk 0:02:52]} 12. Bd4 {[%clk 0:02:56]}  Qc7 {[%clk 0:02:49]} 13. g4 {[%clk 0:02:56]}  Rfb8 {[%clk 0:02:48]} 14. b3 {[%clk 0:02:55]}  Rb4 {[%clk 0:02:35]} 15. a3 {[%clk 0:02:27]}  Rbb8 {[%clk 0:02:32]} 16. Na4 {[%clk 0:02:27]}  Qd6 {[%clk 0:02:29]} 17. Kb2 {[%clk 0:02:26]}  Qc6 {[%clk 0:02:25]} 18. Ka2 {[%clk 0:02:25]}  Bxg4 {[%clk 0:02:16]} 19. fxg4 {[%clk 0:02:24]}  Ne4 {[%clk 0:02:15]} 20. Qc1 {[%clk 0:02:02]}  e5 {[%clk 0:01:57]} 21. Bb2 {[%clk 0:02:01]}  Nf2 {[%clk 0:01:55]} 22. Bg2 {[%clk 0:01:58]}  Nxd1 {[%clk 0:01:50]} 23. Rxd1 {[%clk 0:01:58]}  e4 {[%clk 0:01:49]} 24. Bxg7 {[%clk 0:01:57]}  Kxg7 {[%clk 0:01:50]} 25. Qb2+ {[%clk 0:01:56]}  Kg8 {[%clk 0:01:47]} 26. Nc3 {[%clk 0:01:57]}  Rd8 {[%clk 0:01:44]} 27. Ne2 {[%clk 0:01:55]}  Qe6 {[%clk 0:01:39]} 28. h3 {[%clk 0:01:44]}  Rac8 {[%clk 0:01:34]} 29. Nf4 {[%clk 0:01:44]}  Qc6 {[%clk 0:01:32]} 30. Rd2 {[%clk 0:01:39]}  e3 {[%clk 0:01:28]} 31. Re2 {[%clk 0:01:37]}  Qc5 {[%clk 0:01:26]} 32. Nxd5 {[%clk 0:01:30]}  Rxd5 {[%clk 0:01:25]} 33. Bxd5 {[%clk 0:01:30]}  Qxd5 {[%clk 0:01:26]} 34. Rxe3 {[%clk 0:01:31]}  Qd1 {[%clk 0:01:24]} 35. Rd3 {[%clk 0:01:30]}  Qf1 {[%clk 0:01:20]} 36. a4 {[%clk 0:01:27]}  Qf2 {[%clk 0:01:19]} 37. Rc3 {[%clk 0:01:26]}  Re8 {[%clk 0:01:18]} 38. Rc7 {[%clk 0:01:24]}  Qg3 {[%clk 0:01:12]} 39. Rxa7 {[%clk 0:01:22]}  Qxh3 {[%clk 0:01:11]} 40. Qf6 {[%clk 0:01:22]}  Rf8 {[%clk 0:01:10]} 41. g5 {[%clk 0:01:20]}  Qh2 {[%clk 0:01:08]} 42. Kb2 {[%clk 0:01:17]}  Qg1 {[%clk 0:01:04]} 43. Rd7 {[%clk 0:01:14]}  Qh2 {[%clk 0:00:57]} 44. a5 {[%clk 0:01:11]}  Qb8 {[%clk 0:00:50]} 45. a6 {[%clk 0:01:10]}  Qa8 {[%clk 0:00:49]} 46. a7 {[%clk 0:01:10]}  Qe4 {[%clk 0:00:45]} 47. Rd8 {[%clk 0:01:07]}  Rxd8 {[%clk 0:00:38]} 48. Qxd8+ {[%clk 0:01:07]}  Kg7 {[%clk 0:00:38]} 49. a8=Q {[%clk 0:01:06]}  Qe5+ {[%clk 0:00:38]} 50. Ka2 {[%clk 0:01:06]}  f5 {[%clk 0:00:35]} 51. Qb7+ {[%clk 0:01:04]}  Qe7 {[%clk 0:00:33]} 52. Qdd7 {[%clk 0:01:02]}  Qxd7 {[%clk 0:00:32]} 53. Qxd7+ {[%clk 0:01:03]}  Kg8 {[%clk 0:00:33]} 54. b4 {[%clk 0:01:03]}  f4 {[%clk 0:00:34]} 55. b5 {[%clk 0:01:03]}  h5 {[%clk 0:00:34]} 56. b6 {[%clk 0:01:03]}  f3 {[%clk 0:00:35]} 57. b7 {[%clk 0:01:03]}  f2 {[%clk 0:00:36]} 58. Qd3 {[%clk 0:01:03]}  f1=Q {[%clk 0:00:37]} 59. Qxf1 {[%clk 0:01:03]}  Kg7 {[%clk 0:00:36]} 60. Qf6+ {[%clk 0:01:03]}  Kg8 {[%clk 0:00:36]} 61. Qxg6+ {[%clk 0:01:03]}  Kh8 {[%clk 0:00:37]} 62. Qxh5+ {[%clk 0:01:03]}  Kg7 {[%clk 0:00:37]} 63. Qh6+ {[%clk 0:01:04]}  Kg8 {[%clk 0:00:37]} 64. c4 {[%clk 0:01:04]}  Kf7 {[%clk 0:00:36]} 65. c5 {[%clk 0:01:05]}  Kg8 {[%clk 0:00:36]} 66. c6 {[%clk 0:01:05]}  Kf7 {[%clk 0:00:37]} 67. c7 {[%clk 0:01:05]}  Kg8 {[%clk 0:00:38]} 68. c8=Q+ {[%clk 0:01:05]}  Kf7 {[%clk 0:00:39]} 69. Qf5+ {[%clk 0:01:04]}  Kg8 {[%clk 0:00:40]} 70. Qe4 {[%clk 0:01:03]}  Kf7 {[%clk 0:00:40]} 71. b8=N {[%clk 0:01:01]}  Kg8 {[%clk 0:00:41]} 72. Nd7 {[%clk 0:01:01]}  Kf7 {[%clk 0:00:42]} 73. g6+ {[%clk 0:00:58]}  Kg8 {[%clk 0:00:43]} 74. Nf6# {[%clk 0:00:57]} 1-0


[Site "https://www.chess.com"]

[Event "Titled Tuesday Blitz March 29 Early 2022"]
[White "Manukyan, Sargis A."]
[Black "Dronavalli, Harika"]
[WhiteFideId "13303970"]
[BlackFideId "5015197"]
[WhiteElo "2187"]
[BlackElo "2382"]
[Result "1-0"]
[Round "06"]
[TimeControl "180+1"]
[Date "2022.03.30"]
[WhiteClock "0:00:24"]
[BlackClock "0:00:05"]

1. d4 {[%clk 0:03:00]}  Nf6 {[%clk 0:03:00]} 2. c4 {[%clk 0:03:01]}  e6 {[%clk 0:03:00]} 3. Nc3 {[%clk 0:03:01]}  Bb4 {[%clk 0:03:00]} 4. a3 {[%clk 0:03:02]}  Bxc3+ {[%clk 0:03:00]} 5. bxc3 {[%clk 0:03:03]}  Nc6 {[%clk 0:03:00]} 6. e3 {[%clk 0:03:03]}  b6 {[%clk 0:03:00]} 7. Bd3 {[%clk 0:03:03]}  Na5 {[%clk 0:02:58]} 8. e4 {[%clk 0:03:03]}  Ba6 {[%clk 0:02:57]} 9. e5 {[%clk 0:03:03]}  Ng8 {[%clk 0:02:57]} 10. Qg4 {[%clk 0:03:00]}  Kf8 {[%clk 0:02:33]} 11. Qe2 {[%clk 0:02:40]}  Ne7 {[%clk 0:02:22]} 12. a4 {[%clk 0:02:34]}  c5 {[%clk 0:02:11]} 13. Nf3 {[%clk 0:02:32]}  Rc8 {[%clk 0:02:08]} 14. d5 {[%clk 0:02:20]}  h6 {[%clk 0:01:49]} 15. d6 {[%clk 0:02:12]}  Nec6 {[%clk 0:01:43]} 16. Nd2 {[%clk 0:02:12]}  Qh4 {[%clk 0:01:38]} 17. O-O {[%clk 0:02:08]}  Rb8 {[%clk 0:01:30]} 18. f4 {[%clk 0:02:04]}  g6 {[%clk 0:01:29]} 19. Rb1 {[%clk 0:02:00]}  Ke8 {[%clk 0:01:21]} 20. g3 {[%clk 0:01:59]}  Qd8 {[%clk 0:01:13]} 21. Ne4 {[%clk 0:01:58]}  Kf8 {[%clk 0:01:10]} 22. Nf6 {[%clk 0:01:57]}  Kg7 {[%clk 0:01:10]} 23. g4 {[%clk 0:01:57]}  Nb7 {[%clk 0:00:53]} 24. h4 {[%clk 0:01:53]}  Nxd6 {[%clk 0:00:50]} 25. exd6 {[%clk 0:01:15]}  Qxf6 {[%clk 0:00:49]} 26. g5 {[%clk 0:01:16]}  Qd8 {[%clk 0:00:45]} 27. f5 {[%clk 0:01:16]}  exf5 {[%clk 0:00:45]} 28. gxh6+ {[%clk 0:01:11]}  Rxh6 {[%clk 0:00:36]} 29. Bg5 {[%clk 0:01:11]}  Qe8 {[%clk 0:00:31]} 30. Bxh6+ {[%clk 0:01:11]}  Kxh6 {[%clk 0:00:31]} 31. Qd2+ {[%clk 0:01:12]}  Kg7 {[%clk 0:00:31]} 32. Rbe1 {[%clk 0:01:12]}  Qh8 {[%clk 0:00:31]} 33. Qg5 {[%clk 0:01:06]}  Re8 {[%clk 0:00:30]} 34. Rxe8 {[%clk 0:00:56]}  Qxe8 {[%clk 0:00:29]} 35. h5 {[%clk 0:00:57]}  Qe5 {[%clk 0:00:20]} 36. hxg6 {[%clk 0:00:47]}  fxg6 {[%clk 0:00:20]} 37. Bxf5 {[%clk 0:00:47]}  Qxd6 {[%clk 0:00:16]} 38. Be4 {[%clk 0:00:39]}  Bxc4 {[%clk 0:00:13]} 39. Rf2 {[%clk 0:00:39]}  Ne5 {[%clk 0:00:08]} 40. Rd2 {[%clk 0:00:38]}  Qe6 {[%clk 0:00:08]} 41. Rh2 {[%clk 0:00:36]}  Nf7 {[%clk 0:00:08]} 42. Qh4 {[%clk 0:00:35]}  Qf6 {[%clk 0:00:05]} 43. Qh7+ {[%clk 0:00:31]}  Kf8 {[%clk 0:00:05]} 44. Rf2 {[%clk 0:00:25]}  Qg5+ {[%clk 0:00:05]} 45. Kh1 {[%clk 0:00:24]} 1-0


[Site "https://www.chess.com"]

[Event "Titled Tuesday Blitz March 29 Early 2022"]
[White "Martin Carmona, Gaston Manuel"]
[Black "Csonka, Balazs"]
[WhiteFideId "22284567"]
[BlackFideId "742910"]
[WhiteElo "2161"]
[BlackElo "2404"]
[Result "0-1"]
[Round "06"]
[TimeControl "180+1"]
[Date "2022.03.30"]
[WhiteClock "0:00:06"]
[BlackClock "0:00:03"]

1. c4 {[%clk 0:03:00]}  Nf6 {[%clk 0:02:55]} 2. g3 {[%clk 0:03:00]}  c6 {[%clk 0:02:50]} 3. Bg2 {[%clk 0:02:57]}  d5 {[%clk 0:02:50]} 4. Nf3 {[%clk 0:02:56]}  dxc4 {[%clk 0:02:48]} 5. O-O {[%clk 0:02:31]}  Qd5 {[%clk 0:02:41]} 6. Nc3 {[%clk 0:02:00]}  Qh5 {[%clk 0:02:39]} 7. b3 {[%clk 0:01:57]}  cxb3 {[%clk 0:02:28]} 8. Qxb3 {[%clk 0:01:58]}  e6 {[%clk 0:02:03]} 9. Ba3 {[%clk 0:01:55]}  Nbd7 {[%clk 0:01:52]} 10. d4 {[%clk 0:01:45]}  Qa5 {[%clk 0:01:43]} 11. Bxf8 {[%clk 0:01:41]}  Nxf8 {[%clk 0:01:44]} 12. Ne5 {[%clk 0:01:41]}  Ng6 {[%clk 0:01:27]} 13. Nxc6 {[%clk 0:01:39]}  Qb6 {[%clk 0:01:00]} 14. Qxb6 {[%clk 0:01:12]}  axb6 {[%clk 0:01:01]} 15. Ne5 {[%clk 0:01:04]}  Nxe5 {[%clk 0:01:00]} 16. dxe5 {[%clk 0:01:05]}  Ng4 {[%clk 0:00:56]} 17. f4 {[%clk 0:00:52]}  Ne3 {[%clk 0:00:54]} 18. Rfc1 {[%clk 0:00:52]}  Nxg2 {[%clk 0:00:54]} 19. Kxg2 {[%clk 0:00:53]}  Bd7 {[%clk 0:00:54]} 20. Rab1 {[%clk 0:00:52]}  Bc6+ {[%clk 0:00:50]} 21. Kf2 {[%clk 0:00:52]}  Ra6 {[%clk 0:00:49]} 22. Rb2 {[%clk 0:00:35]}  Kd7 {[%clk 0:00:46]} 23. Rcb1 {[%clk 0:00:31]}  Kc7 {[%clk 0:00:46]} 24. Rc2 {[%clk 0:00:32]}  Kb8 {[%clk 0:00:45]} 25. Rcb2 {[%clk 0:00:32]}  Kc7 {[%clk 0:00:38]} 26. Ke3 {[%clk 0:00:32]}  Rd8 {[%clk 0:00:34]} 27. Rc1 {[%clk 0:00:28]}  Kb8 {[%clk 0:00:33]} 28. h4 {[%clk 0:00:29]}  Ka7 {[%clk 0:00:25]} 29. h5 {[%clk 0:00:28]}  h6 {[%clk 0:00:25]} 30. g4 {[%clk 0:00:29]}  Ra3 {[%clk 0:00:23]} 31. Rb3 {[%clk 0:00:27]}  Ra5 {[%clk 0:00:18]} 32. Rcb1 {[%clk 0:00:26]}  Rc8 {[%clk 0:00:15]} 33. Rxb6 {[%clk 0:00:23]}  Bg2 {[%clk 0:00:11]} 34. R6b3 {[%clk 0:00:20]}  Rac5 {[%clk 0:00:11]} 35. Ne4 {[%clk 0:00:18]}  Rc2 {[%clk 0:00:07]} 36. Rxb7+ {[%clk 0:00:18]}  Ka8 {[%clk 0:00:03]} 37. R7b5 {[%clk 0:00:09]}  Rxa2 {[%clk 0:00:03]} 38. Nd6 {[%clk 0:00:07]}  Rc3+ {[%clk 0:00:03]} 39. Kf2 {[%clk 0:00:07]}  Bd5 {[%clk 0:00:03]} 40. Rb8+ {[%clk 0:00:08]}  Ka7 {[%clk 0:00:03]} 41. Rf8 {[%clk 0:00:07]}  Rcc2 {[%clk 0:00:03]} 42. Rxf7+ {[%clk 0:00:07]}  Ka6 {[%clk 0:00:02]} 43. Re1 {[%clk 0:00:07]}  Ra3 {[%clk 0:00:03]} 44. Rxg7 {[%clk 0:00:05]}  Rf3+ {[%clk 0:00:03]} 45. Kg1 {[%clk 0:00:06]}  Rg3+ {[%clk 0:00:03]} 46. Kf2 {[%clk 0:00:05]}  Rf3+ {[%clk 0:00:02]} 47. Kg1 {[%clk 0:00:06]}  Rg3+ {[%clk 0:00:02]} 48. Kh2 {[%clk 0:00:06]}  Rg2+ {[%clk 0:00:02]} 49. Kh3 {[%clk 0:00:06]}  Rc3+ {[%clk 0:00:03]} 50. e3 {[%clk 0:00:07]}  Rcc2 {[%clk 0:00:03]} 51. Rh1 {[%clk 0:00:06]}  Rge2 {[%clk 0:00:02]} 52. Kh4 {[%clk 0:00:05]}  Bxh1 {[%clk 0:00:02]} 53. g5 {[%clk 0:00:05]}  Rh2+ {[%clk 0:00:02]} 54. Kg4 {[%clk 0:00:06]}  Rcg2+ {[%clk 0:00:03]} 55. Kf3 {[%clk 0:00:06]}  Rg1# {[%clk 0:00:03]} 0-1


[Site "https://www.chess.com"]

[Event "Titled Tuesday Blitz March 29 Early 2022"]
[White "Martinez Alcantara, Jose Eduardo"]
[Black "Postny, Evgeny"]
[WhiteFideId "3805662"]
[BlackFideId "2804344"]
[WhiteElo "2690"]
[BlackElo "2483"]
[Result "1-0"]
[Round "06"]
[TimeControl "180+1"]
[Date "2022.03.29"]
[WhiteClock "0:01:23"]
[BlackClock "0:00:02"]

1. e4 {[%clk 0:03:00]}  e5 {[%clk 0:02:59]} 2. Nf3 {[%clk 0:03:01]}  Nc6 {[%clk 0:02:59]} 3. Bb5 {[%clk 0:03:02]}  a6 {[%clk 0:02:58]} 4. Ba4 {[%clk 0:03:02]}  Nf6 {[%clk 0:02:58]} 5. d3 {[%clk 0:03:03]}  d6 {[%clk 0:02:56]} 6. c3 {[%clk 0:03:03]}  g6 {[%clk 0:02:56]} 7. h3 {[%clk 0:03:04]}  Bg7 {[%clk 0:02:56]} 8. Be3 {[%clk 0:03:05]}  O-O {[%clk 0:02:56]} 9. Nbd2 {[%clk 0:03:05]}  Bd7 {[%clk 0:02:50]} 10. O-O {[%clk 0:03:05]}  Qe8 {[%clk 0:02:35]} 11. Re1 {[%clk 0:03:03]}  Rd8 {[%clk 0:02:34]} 12. Bb3 {[%clk 0:02:59]}  Kh8 {[%clk 0:02:34]} 13. d4 {[%clk 0:02:56]}  Nh5 {[%clk 0:02:34]} 14. dxe5 {[%clk 0:02:55]}  Nxe5 {[%clk 0:02:22]} 15. Nxe5 {[%clk 0:02:55]}  dxe5 {[%clk 0:02:16]} 16. Bc5 {[%clk 0:02:30]}  Rg8 {[%clk 0:02:16]} 17. Qc2 {[%clk 0:02:21]}  Nf4 {[%clk 0:02:10]} 18. Nf3 {[%clk 0:02:18]}  Be6 {[%clk 0:01:25]} 19. Rad1 {[%clk 0:02:11]}  Qb5 {[%clk 0:01:15]} 20. Bxe6 {[%clk 0:02:00]}  Nxe6 {[%clk 0:01:10]} 21. Be3 {[%clk 0:02:01]}  Rge8 {[%clk 0:00:56]} 22. g3 {[%clk 0:01:54]}  Kg8 {[%clk 0:00:56]} 23. Kg2 {[%clk 0:01:52]}  Qc6 {[%clk 0:00:47]} 24. c4 {[%clk 0:01:43]}  f6 {[%clk 0:00:30]} 25. Rd5 {[%clk 0:01:39]}  b5 {[%clk 0:00:22]} 26. b3 {[%clk 0:01:39]}  bxc4 {[%clk 0:00:22]} 27. bxc4 {[%clk 0:01:40]}  Qb7 {[%clk 0:00:18]} 28. Rb1 {[%clk 0:01:39]}  Qc6 {[%clk 0:00:16]} 29. Rbd1 {[%clk 0:01:39]}  Kf7 {[%clk 0:00:14]} 30. h4 {[%clk 0:01:39]}  Qb7 {[%clk 0:00:13]} 31. h5 {[%clk 0:01:39]}  c6 {[%clk 0:00:13]} 32. R5d3 {[%clk 0:01:34]}  Rxd3 {[%clk 0:00:12]} 33. Rxd3 {[%clk 0:01:35]}  Rd8 {[%clk 0:00:11]} 34. Rb3 {[%clk 0:01:35]}  Qd7 {[%clk 0:00:11]} 35. Ra3 {[%clk 0:01:31]}  Qc8 {[%clk 0:00:08]} 36. Rb3 {[%clk 0:01:26]}  Bf8 {[%clk 0:00:07]} 37. c5 {[%clk 0:01:24]}  Be7 {[%clk 0:00:06]} 38. Rb6 {[%clk 0:01:24]}  Qd7 {[%clk 0:00:02]} 39. Rxa6 {[%clk 0:01:23]} 1-0


[Site "https://www.chess.com"]

[Event "Titled Tuesday Blitz March 29 Early 2022"]
[White "Migot, Tangi"]
[Black "Miszler, Levente"]
[WhiteFideId "662445"]
[BlackFideId "763276"]
[WhiteElo "2522"]
[BlackElo "1966"]
[Result "0-1"]
[Round "06"]
[TimeControl "180+1"]
[Date "2022.03.30"]
[WhiteClock "0:00:10"]
[BlackClock "0:00:06"]

1. Nf3 {[%clk 0:03:00]}  Nf6 {[%clk 0:02:59]} 2. g3 {[%clk 0:03:01]}  g6 {[%clk 0:02:58]} 3. Bg2 {[%clk 0:03:02]}  Bh6 {[%clk 0:02:59]} 4. O-O {[%clk 0:03:03]}  O-O {[%clk 0:02:56]} 5. b3 {[%clk 0:03:03]}  d6 {[%clk 0:02:55]} 6. Bb2 {[%clk 0:03:01]}  Bg7 {[%clk 0:02:54]} 7. c4 {[%clk 0:02:59]}  Nbd7 {[%clk 0:02:54]} 8. d4 {[%clk 0:02:59]}  c6 {[%clk 0:02:52]} 9. Nc3 {[%clk 0:02:59]}  Qc7 {[%clk 0:02:53]} 10. e4 {[%clk 0:02:59]}  e5 {[%clk 0:02:53]} 11. d5 {[%clk 0:02:58]}  cxd5 {[%clk 0:02:53]} 12. exd5 {[%clk 0:02:56]}  a6 {[%clk 0:02:52]} 13. Nd2 {[%clk 0:02:56]}  Nc5 {[%clk 0:02:46]} 14. Qe2 {[%clk 0:02:53]}  Re8 {[%clk 0:02:43]} 15. b4 {[%clk 0:02:53]}  Ncd7 {[%clk 0:02:40]} 16. Rac1 {[%clk 0:02:51]}  b6 {[%clk 0:02:40]} 17. Nb3 {[%clk 0:02:39]}  Bb7 {[%clk 0:02:38]} 18. a4 {[%clk 0:02:23]}  Rac8 {[%clk 0:02:36]} 19. Ne4 {[%clk 0:02:12]}  Nxe4 {[%clk 0:02:35]} 20. Bxe4 {[%clk 0:02:13]}  f5 {[%clk 0:02:35]} 21. Bg2 {[%clk 0:02:11]}  e4 {[%clk 0:02:28]} 22. Bxg7 {[%clk 0:02:05]}  Kxg7 {[%clk 0:02:29]} 23. a5 {[%clk 0:02:06]}  Ne5 {[%clk 0:02:26]} 24. Nd4 {[%clk 0:01:41]}  bxa5 {[%clk 0:02:05]} 25. bxa5 {[%clk 0:01:34]}  Qxa5 {[%clk 0:01:59]} 26. Ne6+ {[%clk 0:01:27]}  Kg8 {[%clk 0:01:58]} 27. Qb2 {[%clk 0:01:23]}  Re7 {[%clk 0:01:54]} 28. c5 {[%clk 0:01:17]}  Nd3 {[%clk 0:01:48]} 29. Qf6 {[%clk 0:01:14]}  Rf7 {[%clk 0:01:48]} 30. Ra1 {[%clk 0:01:07]}  Rxf6 {[%clk 0:01:38]} 31. Rxa5 {[%clk 0:01:06]}  Bxd5 {[%clk 0:01:39]} 32. Nd4 {[%clk 0:00:37]}  dxc5 {[%clk 0:01:35]} 33. Nc2 {[%clk 0:00:37]}  Bb3 {[%clk 0:01:26]} 34. Ne3 {[%clk 0:00:37]}  c4 {[%clk 0:01:23]} 35. Rb1 {[%clk 0:00:36]}  Rb6 {[%clk 0:01:17]} 36. Nd5 {[%clk 0:00:34]}  Rb5 {[%clk 0:01:13]} 37. Rxb5 {[%clk 0:00:28]}  axb5 {[%clk 0:01:14]} 38. Ne7+ {[%clk 0:00:29]}  Kf7 {[%clk 0:01:13]} 39. Nxc8 {[%clk 0:00:29]}  b4 {[%clk 0:00:58]} 40. Bf1 {[%clk 0:00:24]}  Bc2 {[%clk 0:00:35]} 41. Bxd3 {[%clk 0:00:18]}  exd3 {[%clk 0:00:32]} 42. Rxb4 {[%clk 0:00:17]}  d2 {[%clk 0:00:30]} 43. Rb7+ {[%clk 0:00:17]}  Ke8 {[%clk 0:00:27]} 44. Nd6+ {[%clk 0:00:17]}  Kd8 {[%clk 0:00:24]} 45. Nf7+ {[%clk 0:00:17]}  Ke8 {[%clk 0:00:24]} 46. Nd6+ {[%clk 0:00:17]}  Kf8 {[%clk 0:00:22]} 47. Rf7+ {[%clk 0:00:16]}  Kg8 {[%clk 0:00:21]} 48. Rd7 {[%clk 0:00:16]}  d1=Q+ {[%clk 0:00:21]} 49. Kg2 {[%clk 0:00:16]}  Be4+ {[%clk 0:00:21]} 50. Nxe4 {[%clk 0:00:16]}  Qa1 {[%clk 0:00:12]} 51. Ng5 {[%clk 0:00:13]}  c3 {[%clk 0:00:10]} 52. Nxh7 {[%clk 0:00:10]}  c2 {[%clk 0:00:09]} 53. Rc7 {[%clk 0:00:11]}  c1=Q {[%clk 0:00:08]} 54. Nf6+ {[%clk 0:00:11]}  Kf8 {[%clk 0:00:06]} 55. Nh7+ {[%clk 0:00:10]}  Ke8 {[%clk 0:00:06]} 56. Nf6+ {[%clk 0:00:11]}  Kd8 {[%clk 0:00:07]} 57. Rxc1 {[%clk 0:00:10]}  Qxc1 {[%clk 0:00:06]} 58. Nd5 {[%clk 0:00:10]}  Qc6 {[%clk 0:00:06]} 0-1


[Site "https://www.chess.com"]